bitfinex/quotes_SOLUSD_20250212
["timestamp","ask_amount","ask_price","bid_price","bid_amount"]
[1739395865593,15.60898873,196.06,196.0,20.77398873]
[1739395865775,15.60898873,196.05,196.0,5.165]
[1739395866085,15.60898873,196.06,196.0,5.165]
[1739395866405,15.60898873,196.04,196.0,5.165]
[1739395866597,15.60898873,196.03,196.0,0.063]
[1739395866897,15.60898873,196.02,196.0,0.063]
[1739395868796,15.60898873,196.04,196.0,0.063]
[1739395870481,15.60898873,196.03,196.0,0.063]
[1739395871892,1.6309,196.07,196.0,0.063]
[1739395871893,15.60898873,196.01,196.0,0.063]
[1739395872688,15.60898873,196.02,196.0,0.063]
[1739395873400,15.60898873,196.03,196.0,0.063]
[1739395874185,15.60898873,196.02,196.0,0.063]
[1739395875093,15.60898873,196.04,196.0,0.063]
[1739395875396,0.03,196.05,196.0,0.063]
[1739395875591,15.63898873,196.05,196.0,0.063]
[1739395875787,15.60898873,196.04,196.0,0.063]
[1739395875972,15.60898873,196.02,196.0,0.063]
[1739395876593,15.60898873,196.01,196.0,0.063]
[1739395877383,17.25108873,196.01,196.0,0.063]
[1739395877696,11.65841993,196.01,196.0,0.063]
[1739395880405,17.68711993,196.01,196.0,0.063]
[1739395880800,57.75239965,196.01,196.0,0.063]
[1739395881000,58.00337965,196.01,196.0,0.063]
[1739395881395,0.12549,196.0,195.92,5.1041]
[1739395881592,10.01631993,195.94,195.92,5.1041]
[1739395881792,10.01631993,195.93,195.9,0.063]
[1739395882108,10.01631993,195.94,195.9,0.063]
[1739395882698,10.01631993,195.95,195.9,0.063]
[1739395882888,10.01631993,195.95,195.9,5.1676]
[1739395883811,15.65648352,195.95,195.9,5.1676]
[1739395884187,15.65648352,195.95,195.9,0.063]
[1739395885219,15.65648352,195.98,195.91,35.65648352]
[1739395886012,15.65648352,195.95,195.9,5.1676]
[1739395886217,15.65648352,195.94,195.9,5.1676]
[1739395886417,15.65648352,195.95,195.9,5.1676]
[1739395886592,7.6708,196.01,195.9,20.82408352]
[1739395886593,15.65648352,195.97,195.9,20.82408352]
[1739395887013,15.65648352,195.98,195.91,15.65648352]
[1739395888012,15.65648352,195.98,195.92,5.1041]
[1739395888827,7.6708,196.01,195.94,15.65648352]
[1739395888828,17.29858352,196.01,195.94,15.65648352]
[1739395888995,0.03,196.05,195.96,0.12549]
[1739395889194,15.68648352,196.05,195.99,15.65648352]
[1739395889391,15.65648352,196.04,195.98,15.65648352]
[1739395889616,15.65648352,196.03,195.97,15.65648352]
[1739395890010,15.65648352,196.03,195.98,5.1025]
[1739395890209,15.65648352,196.03,195.98,5.05866582]
[1739395890821,15.65648352,196.04,195.98,20.71514934]
[1739395891027,0.03,196.05,196.01,5.1017]
[1739395891323,0.03,196.05,196.02,15.65648352]
[1739395892311,0.03,196.05,196.01,5.1017]
[1739395892312,0.03,196.05,196.03,20.75768352]
[1739395892524,0.03,196.05,196.04,15.65648352]
[1739395893523,0.03,196.05,196.03,20.75768352]
[1739395893914,0.03,196.05,196.04,15.65648352]
[1739395895406,0.03,196.05,196.04,20.75738352]
[1739395895925,0.03,196.05,196.04,5.1009]
[1739395896613,0.03,196.05,196.04,20.88287352]
[1739395900240,17.31008352,196.16,196.08,0.12549]
[1739395900426,1.6536,196.16,196.11,15.65648352]
[1739395901411,1.6536,196.16,196.12,5.0989]
[1739395902104,0.03,196.16,196.13,15.65648352]
[1739395902736,0.03,196.16,196.14,5.0983]
[1739395905339,0.03,196.16,196.13,0.12549]
[1739395905543,0.03,196.16,196.12,5.0989]
[1739395905716,15.68648352,196.16,196.12,5.0989]
[1739395905920,0.03,196.16,196.12,5.0989]
[1739395906937,15.68648352,196.16,196.11,5.0991]
[1739395907948,15.65648352,196.14,196.1,5.0994]
[1739395908117,15.65648352,196.11,196.04,20.75738352]
[1739395908316,6.496,196.16,196.04,20.75738352]
[1739395908317,15.65648352,196.1,196.04,20.75738352]
[1739395909636,15.65648352,196.11,196.06,20.0]
[1739395909824,15.65648352,196.12,196.06,5.1004]
[1739395910145,15.65648352,196.12,196.06,40.75688352]
[1739395910752,15.65648352,196.13,196.08,5.0999]
[1739395913245,1.5982,196.14,196.08,5.0999]
[1739395913246,17.25468352,196.14,196.08,15.65648352]
[1739395913545,1.5982,196.14,196.09,15.65648352]
[1739395913963,0.0001,196.15,196.13,15.78197352]
[1739395914142,0.0001,196.15,196.14,15.78197352]
[1739395914445,0.0001,196.15,196.14,15.65648352]
[1739395914650,0.0001,196.15,196.11,15.65648352]
[1739395914850,0.0001,196.15,196.07,155.3507]
[1739395915142,0.0001,196.15,196.06,80.8]
[1739395915143,0.0001,196.15,196.06,13.78831853]
[1739395915336,0.0001,196.15,196.07,0.12549]
[1739395916150,15.65648352,196.14,196.08,15.65648352]
[1739395916440,15.65648352,196.14,196.09,5.0996]
[1739395916644,15.65658352,196.15,196.09,5.0996]
[1739395916842,0.0001,196.15,196.09,20.75608352]
[1739395917033,0.0001,196.15,196.14,15.78197352]
[1739395917227,0.0001,196.15,196.13,15.65648352]
[1739395918249,0.0001,196.15,196.14,5.0983]
[1739395920817,0.0001,196.15,196.13,5.0986]
[1739395921222,0.0001,196.15,196.13,20.75508352]
[1739395921649,0.0001,196.15,196.13,5.0986]
[1739395923153,0.0001,196.15,196.14,15.65648352]
[1739395923349,0.0001,196.15,196.14,20.75478352]
[1739395923727,0.0001,196.15,196.14,5.0983]
[1739395924462,0.0001,196.15,196.13,5.0986]
[1739395925345,0.0001,196.15,196.13,20.75508352]
[1739395925764,0.0001,196.15,196.13,5.0986]
[1739395928245,0.0001,196.15,196.11,28.40398352]
[1739395928554,0.0001,196.15,196.11,12.7475]
[1739395929227,0.0001,196.15,196.14,0.12549]
[1739395929435,0.0001,196.15,196.14,15.78197352]
[1739395930361,0.0001,196.15,196.14,20.88027352]
[1739395936128,0.0001,196.15,196.14,34.54310205]
[1739395937269,0.03,196.19,196.17,20.0]
[1739395937437,0.03,196.19,196.18,15.78197352]
[1739395937641,0.0001,196.19,196.18,29.57029205]
[1739395938864,0.0001,196.19,196.18,34.66759205]
[1739395941168,15.65658352,196.19,196.16,5.0978]
[1739395941371,15.65648352,196.18,196.16,5.0978]
[1739395941547,0.0001,196.19,196.16,5.0978]
[1739395942358,0.0001,196.19,196.13,10.12043961]
[1739395942556,0.0001,196.19,196.14,5.0983]
[1739395944041,15.6175511,196.19,196.14,5.0983]
[1739395945147,15.6174511,196.17,196.13,5.0986]
[1739395945674,15.6174511,196.18,196.13,5.0986]
[1739395946170,15.6175511,196.19,196.13,5.0986]
[1739395947644,0.0001,196.19,196.13,15.6174511]
[1739395949181,0.0001,196.19,196.14,5.0983]
[1739395949780,0.0001,196.19,196.15,15.7429411]
[1739395951381,15.6175511,196.19,196.16,5.0978]
[1739395951947,0.0001,196.19,196.16,5.0978]
[1739395952251,0.0001,196.19,196.14,15.6174511]
[1739395952446,0.0001,196.19,196.15,5.0981]
[1739395956682,0.0001,196.19,196.18,15.6174511]
[1739395956983,0.0001,196.19,196.18,15.7429411]
[1739395958067,0.0001,196.19,196.18,20.8402411]
[1739395958272,0.0001,196.19,196.18,34.62855963]
[1739395959763,0.0001,196.21,196.2,5.34778]
[1739395959964,0.0001,196.21,196.2,22.03516676]
[1739395961183,0.0001,196.21,196.2,21.90967676]
[1739395961387,0.0001,196.21,196.2,25.0968]
[1739395961684,0.0001,196.21,196.2,40.7142511]
[1739395961986,0.0001,196.21,196.2,40.8397411]
[1739395963991,0.0001,196.21,196.2,55.69807526]
[1739395965283,0.0001,196.21,196.2,40.8397411]
[1739395965586,0.0001,196.21,196.2,25.22229]
[1739395966479,0.0001,196.21,196.2,5.22229]
[1739395967075,0.0001,196.21,196.2,15.21140259]
[1739395968275,0.0001,196.21,196.18,5.0973]
[1739395969390,0.0001,196.21,196.2,10.11460259]
[1739395969690,0.0001,196.21,196.2,15.73343896]
[1739395970470,0.0001,196.21,196.2,20.83023896]
[1739395970775,0.0001,196.21,196.2,34.61855749]
[1739395971891,0.0001,196.21,196.2,20.83023896]
[1739395973690,0.0001,196.21,196.2,34.49306749]
[1739395974890,0.0001,196.21,196.2,34.61855749]
[1739395981278,0.0001,196.21,196.2,21.14421896]
[1739395981596,0.0001,196.21,196.2,20.89323896]
[1739395989810,0.0001,196.21,196.2,5.1598]
[1739395991003,0.0001,196.21,196.2,10.05024564]
[1739395992199,0.0001,196.21,196.2,15.14704564]
[1739395996614,0.0001,196.21,196.2,0.063]
[1739395997002,0.0001,196.21,196.2,10.05024564]
[1739395997621,0.0001,196.21,196.2,15.14704564]
[1739395999820,0.0001,196.21,196.2,0.063]
[1739396000893,0.0001,196.21,196.2,5.1598]
[1739396002014,0.0001,196.21,196.2,0.063]
[1739396002820,0.0001,196.21,196.2,10.05024564]
[1739396002997,0.0001,196.21,196.2,15.14704564]
[1739396008725,0.0001,196.21,196.2,5.1598]
[1739396012036,0.0001,196.21,196.2,0.063]
[1739396013307,9.98734564,196.21,196.2,0.063]
[1739396013711,0.0001,196.21,196.2,0.063]
[1739396015031,9.98734564,196.21,196.2,0.063]
[1739396015606,0.0001,196.21,196.2,0.063]
[1739396021041,0.0001,196.21,196.2,10.05024564]
[1739396022243,0.0001,196.21,196.2,0.063]
[1739396036236,0.0001,196.21,196.2,15.27253564]
[1739396037045,0.0001,196.21,196.2,15.14704564]
[1739396037620,0.0001,196.21,196.2,0.063]
[1739396044948,9.98734564,196.21,196.2,0.063]
[1739396046750,0.0001,196.21,196.2,0.063]
[1739396047255,9.98734564,196.21,196.2,0.063]
[1739396057162,10.11283564,196.21,196.2,0.063]
[1739396060564,64.72464673,196.21,196.2,0.063]
[1739396062259,65.72464673,196.21,196.2,0.063]
[1739396062452,0.12549,196.18,196.15,0.063]
[1739396062647,9.98724564,196.16,196.15,0.063]
[1739396067554,10.11273564,196.16,196.15,0.063]
[1739396068577,23.65007417,196.16,196.15,0.063]
[1739396071946,24.77556417,196.16,196.15,0.063]
[1739396072168,25.77556417,196.16,196.15,0.063]
[1739396075766,1.37647,196.12,196.05,0.063]
[1739396076071,9.98724564,196.06,196.05,0.063]
[1739396077152,9.98724564,196.07,196.05,0.063]
[1739396078449,9.98724564,196.06,196.05,0.063]
[1739396078758,9.98724564,196.07,196.05,0.063]
[1739396083087,9.98724564,196.08,196.05,0.063]
[1739396085756,82.3,196.11,196.07,9.98724564]
[1739396085964,9.98724564,196.13,196.07,9.98724564]
[1739396086164,9.98724564,196.13,196.06,9.98724564]
[1739396087082,9.98724564,196.13,196.07,5.1002]
[1739396087270,9.98724564,196.12,196.07,5.1002]
[1739396087984,9.98724564,196.13,196.07,15.08744564]
[1739396088184,92.28724564,196.17,196.11,9.98724564]
[1739396088396,82.3,196.17,196.12,9.98724564]
[1739396088883,9.98724564,196.17,196.11,9.98724564]
[1739396089383,9.98724564,196.17,196.12,5.0989]
[1739396089883,9.98724564,196.13,196.08,5.0999]
[1739396090058,9.98724564,196.12,196.08,5.0999]
[1739396090257,9.98724564,196.12,196.06,5.1004]
[1739396091081,9.98724564,196.12,196.06,15.08764564]
[1739396092386,9.98724564,196.13,196.07,9.98724564]
[1739396093778,9.98724564,196.14,196.08,9.98724564]
[1739396093977,9.98724564,196.15,196.09,9.98724564]
[1739396094379,9.98724564,196.14,196.08,9.98724564]
[1739396094702,9.98724564,196.15,196.09,9.98724564]
[1739396095001,9.98724564,196.17,196.1,9.98724564]
[1739396095364,9.98724564,196.17,196.11,9.98724564]
[1739396095887,9.98724564,196.18,196.12,9.98724564]
[1739396096079,9.98724564,196.18,196.12,15.08594564]
[1739396096389,82.3,196.19,196.15,9.98724564]
[1739396096583,17.49763187,196.2,196.15,9.98724564]
[1739396096785,17.49763187,196.2,196.16,9.98724564]
[1739396097574,17.49763187,196.2,196.14,9.98724564]
[1739396097773,27.48487751,196.2,196.14,9.98724564]
[1739396098793,27.48487751,196.2,196.15,5.0981]
[1739396098992,17.49763187,196.2,196.15,15.08534564]
[1739396101197,17.49763187,196.2,196.16,9.98724564]
[1739396101382,17.49763187,196.2,196.18,9.98724564]
[1739396101576,17.49763187,196.2,196.17,9.98724564]
[1739396102194,17.49763187,196.2,196.16,9.98724564]
[1739396102696,17.49763187,196.2,196.18,9.98724564]
[1739396102882,17.49763187,196.2,196.19,5.097]
[1739396105492,17.49763187,196.2,196.19,9.98724564]
[1739396106504,17.49763187,196.2,196.19,15.08424564]
[1739396107302,17.49763187,196.2,196.19,5.097]
[1739396108699,17.49763187,196.2,196.14,15.08554564]
[1739396108700,27.48487751,196.2,196.14,15.08554564]
[1739396109004,27.48487751,196.2,196.14,5.0983]
[1739396110008,17.49763187,196.2,196.18,9.98724564]
[1739396110181,17.49763187,196.2,196.19,9.98724564]
[1739396111805,17.49763187,196.2,196.19,15.08424564]
[1739396116282,17.49763187,196.2,196.15,9.98724564]
[1739396116481,9.98724564,196.19,196.15,5.0981]
[1739396117199,9.98724564,196.18,196.13,5.0985]
[1739396117588,9.98724564,196.19,196.13,5.0985]
[1739396117785,9.98724564,196.19,196.13,15.08574564]
[1739396122207,17.49763187,196.2,196.12,5.0988]
[1739396122208,9.98724564,196.17,196.12,5.0988]
[1739396122406,9.98724564,196.16,196.1,9.98724564]
[1739396122603,9.98724564,196.16,196.1,15.08644564]
[1739396122917,9.98724564,196.16,196.13,0.063]
[1739396123300,0.03,196.19,196.13,0.063]
[1739396123493,9.98724564,196.14,196.13,0.063]
[1739396130505,10.11273564,196.14,196.13,0.063]
[1739396135157,9.98724564,196.14,196.13,0.063]
[1739396135668,2.03,196.19,196.13,0.063]
[1739396135669,9.98724564,196.15,196.13,0.063]
[1739396135837,92.28724564,196.18,196.13,0.063]
[1739396137669,0.03,196.19,196.15,9.98724564]
[1739396137857,0.03,196.19,196.18,9.98724564]
[1739396139049,0.03,196.19,196.18,15.08454564]
[1739396139663,0.03,196.19,196.18,15.21003564]
[1739396140542,0.03,196.19,196.18,15.08454564]
[1739396142054,0.03,196.19,196.16,9.98724564]
[1739396142666,0.03,196.19,196.17,9.98724564]
[1739396143070,0.03,196.19,196.18,5.0973]
[1739396143242,0.03,196.19,196.18,15.08454564]
[1739396145063,0.03,196.19,196.18,15.21003564]
[1739396147576,0.03,196.2,196.18,28.87286417]
[1739396147757,0.03,196.2,196.19,9.98724564]
[1739396148590,0.03,196.2,196.19,15.08424564]
[1739396150404,0.0001,196.2,196.19,28.87256417]
[1739396150557,0.0001,196.2,196.19,29.94255265]
[1739396151579,0.0001,196.2,196.19,15.20973564]
[1739396154977,0.0001,196.2,196.19,28.87256417]
[1739396157282,0.0001,196.2,196.19,28.67256417]
[1739396157475,0.0001,196.2,196.19,28.87256417]
[1739396157858,0.0001,196.2,196.19,99.60703673]
[1739396158071,0.0001,196.2,196.19,70.01695099]
[1739396158271,0.0001,196.2,196.19,30.06796843]
[1739396160772,0.0001,196.2,196.19,70.01695099]
[1739396160981,0.0001,196.2,196.19,30.06796843]
[1739396162674,0.0001,196.2,196.19,70.01695099]
[1739396163685,0.0001,196.2,196.19,30.06796843]
[1739396164388,0.0001,196.2,196.19,71.01695099]
[1739396165382,0.0001,196.2,196.19,70.01695099]
[1739396166691,0.0001,196.2,196.19,71.01695099]
[1739396167206,0.0001,196.2,196.19,102.67695099]
[1739396167385,0.03,196.25,196.23,20.37647]
[1739396167585,0.03,196.25,196.24,9.98724564]
[1739396168601,0.03,196.25,196.24,15.08304564]
[1739396169706,0.03,196.25,196.24,15.20853564]
[1739396170997,0.03,196.25,196.24,5.0958]
[1739396172403,0.03,196.25,196.24,9.98724564]
[1739396173296,0.03,196.25,196.24,20.0]
[1739396173499,0.03,196.25,196.24,25.0958]
[1739396173809,0.03,196.25,196.24,5.0958]
[1739396175090,0.03,196.25,196.22,5.0963]
[1739396176607,0.03,196.25,196.21,12.7409]
[1739396178017,0.03,196.25,196.21,17.8374]
[1739396178898,9.98724564,196.24,196.21,5.0965]
[1739396179099,9.98724564,196.23,196.21,5.0965]
[1739396180009,10.01724564,196.25,196.19,9.98724564]
[1739396181318,10.01724564,196.25,196.2,5.0968]
[1739396182720,10.01724564,196.25,196.18,22.79334564]
[1739396182922,10.01724564,196.25,196.19,5.097]
[1739396182923,9.98724564,196.24,196.19,5.097]
[1739396183418,9.98724564,196.23,196.19,5.097]
[1739396184526,9.98724564,196.23,196.19,5.16]
[1739396184724,9.98724564,196.23,196.19,0.063]
[1739396186327,9.98724564,196.24,196.19,5.16]
[1739396187625,9.98724564,196.23,196.19,0.063]
[1739396187828,9.98724564,196.21,196.19,0.063]
[1739396191528,9.98724564,196.22,196.19,0.063]
[1739396191736,9.98724564,196.23,196.19,0.063]
[1739396192229,9.98724564,196.22,196.19,0.063]
[1739396197111,10.01724564,196.23,196.19,0.063]
[1739396197522,9.98724564,196.22,196.19,0.063]
[1739396202740,9.98724564,196.21,196.19,0.063]
[1739396204121,9.98724564,196.22,196.19,0.063]
[1739396207222,9.98724564,196.21,196.19,0.063]
[1739396210437,9.98724564,196.2,196.19,0.063]
[1739396211541,10.23822564,196.2,196.19,0.063]
[1739396211722,52.3126982,196.2,196.19,0.063]
[1739396213348,65.72454673,196.2,196.19,0.063]
[1739396213640,2.0,196.19,196.18,0.0001]
[1739396213849,25.90105417,196.19,196.18,0.0001]
[1739396214349,26.87342852,196.19,196.18,0.0001]
[1739396215741,27.87342852,196.19,196.18,0.0001]
[1739396216545,110.17342852,196.19,196.18,0.0001]
[1739396216727,109.17342852,196.19,196.18,0.0001]
[1739396216928,105.95007417,196.19,196.18,0.0001]
[1739396217428,106.95007417,196.19,196.18,0.0001]
[1739396217643,108.07556417,196.19,196.18,0.0001]
[1739396218539,110.13288561,196.19,196.18,0.0001]
[1739396219047,109.13288561,196.19,196.18,0.0001]
[1739396219253,107.07556417,196.19,196.18,0.0001]
[1739396219860,23.65007417,196.19,196.18,0.0001]
[1739396220427,9.98724564,196.19,196.18,0.0001]
[1739396221535,92.31724564,196.22,196.18,0.0001]
[1739396221751,82.33,196.22,196.18,0.0001]
[1739396222648,92.31724564,196.22,196.18,0.0001]
[1739396224252,9.98724564,196.21,196.18,0.0001]
[1739396225471,82.33,196.22,196.18,0.0001]
[1739396225472,9.98724564,196.2,196.18,0.0001]
[1739396225956,9.98724564,196.19,196.18,0.0001]
[1739396226834,10.11273564,196.19,196.18,0.0001]
[1739396227455,108.07556417,196.19,196.18,0.0001]
[1739396230945,107.07556417,196.19,196.18,0.0001]
[1739396231159,92.41273564,196.19,196.18,0.0001]
[1739396231365,92.28724564,196.19,196.18,0.0001]
[1739396231742,92.41273564,196.19,196.18,0.0001]
[1739396231951,108.07556417,196.19,196.18,0.0001]
[1739396232980,25.90105417,196.19,196.18,0.0001]
[1739396233141,1.0,196.15,196.13,0.063]
[1739396233348,25.77556417,196.14,196.13,0.063]
[1739396233665,0.25098,196.09,196.05,0.063]
[1739396233839,9.98724564,196.06,196.05,0.063]
[1739396235667,9.98724564,196.07,196.05,0.063]
[1739396235849,9.98724564,196.08,196.05,0.063]
[1739396236049,9.98724564,196.09,196.05,0.063]
[1739396236865,9.98724564,196.11,196.05,10.05024564]
[1739396237072,9.98724564,196.13,196.07,9.98724564]
[1739396237256,82.3,196.12,196.07,9.98724564]
[1739396237649,9.98724564,196.16,196.09,9.98724564]
[1739396237873,9.98724564,196.16,196.1,9.98724564]
[1739396238272,9.98724564,196.16,196.1,15.08654564]
[1739396238480,92.28724564,196.17,196.1,15.08654564]
[1739396238657,92.28724564,196.17,196.11,9.98724564]
[1739396238859,82.3,196.17,196.12,9.98724564]
[1739396239559,9.98724564,196.18,196.12,9.98724564]
[1739396239880,0.12549,196.2,196.12,9.98724564]
[1739396239881,9.98724564,196.19,196.12,15.08604564]
[1739396240180,9.98724564,196.19,196.13,9.98724564]
[1739396240980,9.98724564,196.19,196.12,15.08604564]
[1739396241778,15.62056408,196.19,196.12,20.71936408]
[1739396242181,0.12549,196.2,196.12,20.71936408]
[1739396242182,15.62056408,196.18,196.12,20.71936408]
[1739396242773,0.12549,196.2,196.13,15.62056408]
[1739396242774,15.62056408,196.2,196.13,15.62056408]
[1739396242976,15.62056408,196.2,196.14,15.62056408]
[1739396244564,15.62056408,196.2,196.15,5.0981]
[1739396244966,15.62056408,196.2,196.14,20.71886408]
[1739396245791,97.92056408,196.21,196.15,15.62056408]
[1739396245997,97.92056408,196.21,196.15,20.71846408]
[1739396246495,97.92056408,196.21,196.15,5.0979]
[1739396246673,15.62056408,196.2,196.15,5.0979]
[1739396248478,97.92056408,196.21,196.15,5.0979]
[1739396248791,82.3,196.21,196.16,15.62056408]
[1739396250902,82.3,196.21,196.17,5.0976]
[1739396251899,97.92056408,196.21,196.17,5.0976]
[1739396252495,15.62056408,196.2,196.15,5.0981]
[1739396253001,15.62056408,196.2,196.14,5.0983]
[1739396255900,15.62056408,196.19,196.14,5.0983]
[1739396256206,82.3,196.21,196.13,5.0985]
[1739396256207,15.62056408,196.18,196.13,5.0985]
[1739396257283,15.62056408,196.18,196.12,5.0989]
[1739396257689,15.62056408,196.18,196.12,20.71946408]
[1739396259394,15.62056408,196.19,196.13,15.62056408]
[1739396260596,15.62056408,196.19,196.13,20.71916408]
[1739396260906,15.62056408,196.2,196.13,20.71916408]
[1739396261089,82.3,196.19,196.13,20.71916408]
[1739396261591,82.3,196.19,196.13,9.99665432]
[1739396262711,92.29665432,196.19,196.13,5.0986]
[1739396264595,82.3,196.19,196.13,9.99665432]
[1739396265704,92.29665432,196.19,196.13,5.0986]
[1739396267016,82.3,196.19,196.15,9.99665432]
[1739396267512,82.3,196.19,196.14,9.99665432]
[1739396268099,82.3,196.19,196.15,5.0981]
[1739396269130,92.29665432,196.19,196.14,5.0983]
[1739396270418,92.29665432,196.19,196.13,0.063]
[1739396270419,9.99665432,196.18,196.13,5.1616]
[1739396271417,9.99665432,196.18,196.13,0.063]
[1739396272020,9.99665432,196.17,196.13,0.063]
[1739396272222,9.99665432,196.18,196.13,0.063]
[1739396272403,92.29665432,196.19,196.13,0.063]
[1739396273013,82.3,196.18,196.13,0.063]
[1739396273420,9.99665432,196.17,196.13,0.063]
[1739396278126,9.99665432,196.16,196.13,0.063]
[1739396280014,9.99665432,196.14,196.13,0.063]
[1739396280415,9.99665432,196.15,196.13,0.063]
[1739396281003,9.99665432,196.16,196.13,0.063]
[1739396283545,9.99665432,196.15,196.13,0.063]
[1739396283846,9.99665432,196.16,196.13,0.063]
[1739396284344,9.99665432,196.17,196.13,0.063]
[1739396284939,82.3,196.16,196.13,0.063]
[1739396290549,82.3,196.16,196.13,10.05965432]
[1739396290736,82.3,196.16,196.14,9.99665432]
[1739396291051,0.03,196.19,196.14,9.99665432]
[1739396291225,0.03,196.19,196.13,10.05965432]
[1739396291541,9.99665432,196.18,196.13,0.063]
[1739396291837,0.03,196.16,196.13,5.1616]
[1739396292227,0.03,196.16,196.13,15.15825432]
[1739396296953,0.03,196.16,196.13,0.063]
[1739396300458,0.03,196.16,196.13,10.05965432]
[1739396300958,0.03,196.16,196.15,9.99665432]
[1739396302253,0.03,196.16,196.15,15.09475432]
[1739396303459,0.03,196.16,196.15,15.22024432]
[1739396305356,0.03,196.16,196.15,15.34573432]
[1739396306259,0.03,196.16,196.15,28.88307285]
[1739396306560,0.03,196.19,196.18,30.12214432]
[1739396307465,0.0001,196.19,196.18,50.07790127]
[1739396307673,0.0001,196.19,196.18,90.06451855]
[1739396308546,0.0001,196.19,196.18,50.07790127]
[1739396308765,0.0001,196.19,196.18,48.88227285]
[1739396311059,0.0001,196.19,196.18,35.21944432]
[1739396311368,0.0001,196.19,196.18,15.21944432]
[1739396312747,0.0001,196.19,196.18,15.09395432]
[1739396313274,0.0001,196.19,196.18,35.09395432]
[1739396315973,0.0001,196.19,196.18,35.15695432]
[1739396317874,0.0001,196.19,196.18,35.40793432]
[1739396318056,0.0001,196.19,196.18,28.94527285]
[1739396321663,0.03,196.22,196.21,20.12549]
[1739396321971,0.03,196.22,196.21,30.12214432]
[1739396322375,0.03,196.23,196.21,30.24763432]
[1739396322569,0.03,196.23,196.22,10.12214432]
[1739396323081,0.03,196.23,196.22,15.21844432]
[1739396327693,0.03,196.23,196.22,15.09295432]
[1739396328490,0.03,196.23,196.21,5.0965]
[1739396329564,0.03,196.23,196.2,5.0968]
[1739396329792,0.03,196.23,196.2,15.09345432]
[1739396330173,0.03,196.23,196.21,9.99665432]
[1739396330683,0.03,196.23,196.21,15.09305432]
[1739396331778,0.03,196.23,196.22,9.99665432]
[1739396333391,0.03,196.23,196.22,15.09295432]
[1739396341392,0.03,196.23,196.22,15.21844432]
[1739396342089,0.03,196.23,196.22,15.09295432]
[1739396342801,0.03,196.23,196.21,9.99665432]
[1739396342970,0.03,196.23,196.2,9.99665432]
[1739396344102,0.03,196.23,196.21,5.0965]
[1739396344276,0.03,196.23,196.21,15.09315432]
[1739396349798,0.03,196.23,196.2,9.99665432]
[1739396349991,0.03,196.23,196.21,9.99665432]
[1739396351101,0.03,196.23,196.22,5.0963]
[1739396353781,0.03,196.23,196.2,9.99665432]
[1739396354882,0.03,196.23,196.19,15.09365432]
[1739396356922,0.03,196.23,196.2,9.99665432]
[1739396358024,0.03,196.23,196.21,5.0965]
[1739396362597,0.03,196.23,196.22,9.99665432]
[1739396364820,0.03,196.23,196.22,15.09295432]
[1739396369700,0.03,196.25,196.23,0.12549]
[1739396369905,0.03,196.25,196.23,10.12214432]
[1739396370944,0.03,196.25,196.23,15.21814432]
[1739396373025,0.03,196.25,196.23,15.09265432]
[1739396377527,0.03,196.25,196.23,15.15565432]
[1739396377831,25.82531983,196.24,196.23,15.15565432]
[1739396379216,25.82531983,196.24,196.23,15.28114432]
[1739396379742,1.983e-05,196.24,196.23,15.53212432]
[1739396381431,0.03,196.25,196.24,18.88411853]
[1739396381432,1.983e-05,196.25,196.24,18.88411853]
[1739396381641,1.983e-05,196.25,196.24,29.9504496]
[1739396385560,1.983e-05,196.25,196.24,15.34343432]
[1739396386032,1.983e-05,196.25,196.24,15.46892432]
[1739396387021,1.983e-05,196.25,196.24,15.09245432]
[1739396387227,1.983e-05,196.25,196.23,0.063]
[1739396387436,1.983e-05,196.25,196.24,20.0]
[1739396388253,1.983e-05,196.25,196.23,30.05965432]
[1739396389738,1.983e-05,196.25,196.24,5.0958]
[1739396391042,1.983e-05,196.25,196.24,5.1588]
[1739396391833,1.983e-05,196.25,196.24,15.15545432]
[1739396414496,1.983e-05,196.25,196.24,5.1588]